bitfinex/quotes_SOLUSD_20241013
["timestamp","ask_amount","ask_price","bid_price","bid_amount"]
[1728806713841,6.8134,146.77,146.71,20.0]
[1728806714164,6.8134,146.77,146.72,3.45251361]
[1728806714369,6.8134,146.77,146.73,3.45251361]
[1728806714541,6.8134,146.77,146.74,3.45251361]
[1728806714737,6.8134,146.77,146.71,20.0]
[1728806714960,6.8134,146.77,146.72,3.45259996]
[1728806715142,6.8134,146.77,146.73,3.45259996]
[1728806715338,6.8134,146.77,146.74,3.45259996]
[1728806715556,6.8134,146.77,146.71,20.0]
[1728806715870,6.8134,146.77,146.72,3.45313716]
[1728806716043,6.8134,146.77,146.73,3.45313716]
[1728806716367,6.8134,146.77,146.71,20.0]
[1728806716368,6.8134,146.77,146.74,3.45313716]
[1728806716569,6.8134,146.77,146.71,20.0]
[1728806716754,6.8134,146.77,146.72,3.45321198]
[1728806717066,6.8134,146.77,146.73,3.45321198]
[1728806717266,6.8134,146.77,146.74,3.45321198]
[1728806717452,6.8134,146.77,146.71,20.0]
[1728806717659,6.8134,146.77,146.72,3.45323425]
[1728806717862,6.8134,146.77,146.73,3.45323425]
[1728806718061,6.8134,146.77,146.74,3.45323425]
[1728806718369,6.8134,146.77,146.71,20.0]
[1728806718665,6.8134,146.77,146.72,3.45319639]
[1728806718866,6.8134,146.77,146.73,3.45319639]
[1728806719066,6.8134,146.77,146.74,3.45319639]
[1728806719271,6.8134,146.77,146.71,20.0]
[1728806719442,6.8134,146.77,146.72,3.45321559]
[1728806719638,6.8134,146.77,146.73,3.45321559]
[1728806719842,6.8134,146.77,146.74,3.45321559]
[1728806720043,6.8134,146.77,146.71,20.0]
[1728806720343,6.8134,146.77,146.72,3.45409325]
[1728806720542,6.8134,146.77,146.73,3.45409325]
[1728806720742,6.8134,146.77,146.74,3.45409325]
[1728806720942,6.8134,146.77,146.71,20.0]
[1728806721163,6.8134,146.77,146.72,3.4544289]
[1728806721364,6.8134,146.77,146.73,3.4544289]
[1728806721667,6.8134,146.77,146.74,3.4544289]
[1728806721865,6.8134,146.77,146.71,11.40198005]
[1728806722048,6.8134,146.77,146.72,23.45439742]
[1728806722255,6.8134,146.77,146.73,23.45439742]
[1728806722450,6.8134,146.77,146.74,3.45439742]
[1728806722656,6.8134,146.77,146.73,20.0]
[1728806722859,6.8134,146.77,146.74,3.4544045]
[1728806723063,6.8134,146.77,146.72,20.0]
[1728806723261,6.8134,146.77,146.73,3.45443429]
[1728806723474,6.8134,146.77,146.74,3.45443429]
[1728806723673,6.8134,146.77,146.72,20.0]
[1728806724044,6.8134,146.77,146.73,3.45441533]
[1728806724250,6.8134,146.77,146.74,3.45441533]
[1728806724445,6.8134,146.77,146.75,3.45441533]
[1728806724674,6.8134,146.77,146.72,21.3629558]
[1728806724850,6.8134,146.77,146.73,3.45430746]
[1728806725050,6.8134,146.77,146.74,3.45430746]
[1728806725347,23.776884,146.79,146.75,3.45430746]
[1728806725549,6.8116,146.81,146.74,20.0]
[1728806725773,6.8116,146.81,146.76,20.0]
[1728806726069,6.5437,146.82,146.76,20.0]
[1728806726269,13.3548,146.82,146.76,20.0]
[1728806726657,13.3548,146.82,146.76,21.36259491]
[1728806728262,23.1862,146.83,146.77,3.4504271]
[1728806728572,23.1862,146.83,146.78,23.44952301]
[1728806728778,23.1862,146.83,146.78,20.0]
[1728806733559,6.8107,146.83,146.78,20.0]
[1728806736375,6.8107,146.83,146.76,31.40198005]
[1728806736580,6.8107,146.83,146.77,3.4419879]
[1728806736777,6.8112,146.82,146.77,3.4419879]
[1728806736955,6.812,146.8,146.77,3.4419879]
[1728806737161,6.812,146.8,146.75,20.0]
[1728806737597,6.8116,146.81,146.75,20.0]
[1728806737875,6.8116,146.81,146.76,20.0]
[1728806738480,22.9148,146.83,146.77,20.0]
[1728806738883,22.9148,146.83,146.77,23.44163363]
[1728806739059,22.9148,146.83,146.77,20.0]
[1728806739775,0.8730986,146.84,146.78,11.40198005]
[1728806739981,0.8730986,146.84,146.8,20.0]
[1728806741067,0.8730986,146.84,146.8,21.36212153]
[1728806741395,0.8730986,146.84,146.81,20.0]
[1728806745582,0.8730986,146.84,146.81,11.40198005]
[1728806745887,0.8730986,146.84,146.82,20.0]
[1728806751109,0.8730986,146.84,146.82,11.40198005]
[1728806751408,0.8730986,146.84,146.83,21.36197257]
[1728806752425,0.8730986,146.84,146.83,32.76395262]
[1728806753909,0.8730986,146.84,146.83,31.40198005]
[1728806755311,0.8730986,146.84,146.82,11.40198005]
[1728806755816,0.8730986,146.84,146.83,20.0]
[1728806759928,0.8730986,146.84,146.83,12.7638389]
[1728806760318,0.8730986,146.84,146.83,32.7638389]
[1728806760737,0.8730986,146.84,146.83,56.54072343]
[1728806769441,0.8730986,146.84,146.83,45.13874338]
[1728806769743,0.8730986,146.84,146.83,56.54072343]
[1728806770642,0.8730986,146.84,146.83,55.17886405]
[1728806771132,0.8730986,146.84,146.81,20.0]
[1728806771330,0.8730986,146.84,146.83,20.0]
[1728806773946,0.8730986,146.84,146.83,31.40198005]
[1728806775921,0.8730986,146.84,146.83,20.0]
[1728806776134,0.8730986,146.84,146.82,11.40198005]
[1728806776330,0.8730986,146.84,146.83,20.0]
[1728806777148,0.8730986,146.84,146.82,11.40198005]
[1728806777327,0.8730986,146.84,146.83,20.0]
[1728806781030,0.8730986,146.84,146.83,11.40198005]
[1728806781348,0.8730986,146.84,146.83,31.40198005]
[1728806785240,0.8730986,146.84,146.83,20.0]
[1728806785943,0.8730986,146.84,146.81,20.0]
[1728806786252,0.8730986,146.84,146.83,20.0]
[1728806786553,0.8730986,146.84,146.83,31.40198005]
[1728806791736,0.8730986,146.84,146.83,34.84192906]
[1728806792330,0.8730986,146.84,146.83,31.40198005]
[1728806792535,0.8730986,146.84,146.83,34.8420867]
[1728806792736,0.8730986,146.84,146.83,31.40198005]
[1728806792950,0.8730986,146.84,146.83,34.84207905]
[1728806795952,0.8730986,146.84,146.83,32.34207905]
[1728806802372,0.8730986,146.84,146.83,28.90198005]
[1728806802535,0.8730986,146.84,146.83,32.34289436]
[1728806806471,0.8730986,146.84,146.83,56.12140061]
[1728806810259,0.8730986,146.84,146.83,52.67886405]
[1728806810458,0.8730986,146.84,146.83,56.1216608]
[1728806813964,0.8730986,146.84,146.83,52.67886405]
[1728806814269,0.8730986,146.84,146.83,56.12141158]
[1728806817961,0.8730986,146.84,146.83,56.12133816]
[1728806820900,0.8730986,146.84,146.83,52.67886405]
[1728806821191,0.8730986,146.84,146.83,34.8442986]
[1728806823588,0.8730986,146.84,146.83,58.6211826]
[1728806831595,0.8730986,146.84,146.83,55.17886405]
[1728806831800,0.8730986,146.84,146.83,58.61900559]
[1728806831981,0.8730986,146.84,146.83,55.17886405]
[1728806832181,0.8730986,146.84,146.83,47.21702554]
[1728806832381,0.8730986,146.84,146.83,58.61900559]
[1728806842210,0.8730986,146.84,146.83,67.37263875]
[1728806843092,0.8730986,146.84,146.83,67.37087737]
[1728806846808,0.8730986,146.84,146.83,63.93249721]
[1728806847016,0.8730986,146.84,146.83,67.3700302]
[1728806847309,0.8730986,146.84,146.83,70.80756319]
[1728806850013,0.8730986,146.84,146.83,74.7300094]
[1728806850792,0.8730986,146.84,146.83,74.72960182]
[1728806854223,0.8730986,146.84,146.83,71.29247641]
[1728806855798,0.8730986,146.84,146.83,67.85494342]
[1728806859415,0.8730986,146.84,146.83,71.29087463]
[1728806860418,16.6217,146.88,146.84,52.53051716]
[1728806860615,16.6217,146.88,146.87,31.40198005]
[1728806860807,16.6217,146.88,146.87,34.83791126]
[1728806861937,16.6217,146.88,146.87,31.40198005]
[1728806862237,16.6217,146.88,146.87,34.83437218]
[1728806865545,16.6217,146.88,146.87,31.40198005]
[1728806865755,16.6217,146.88,146.87,34.83442827]
[1728806866263,16.6217,146.88,146.87,3.43244822]
[1728806866429,16.6217,146.88,146.87,23.43244822]
[1728806869468,16.6217,146.88,146.87,23.43258668]
[1728806874066,16.6217,146.88,146.87,3.43258668]
[1728806874245,16.6217,146.88,146.86,3.43258668]
[1728806874449,16.6217,146.88,146.87,3.43258668]
[1728806874769,16.6217,146.88,146.86,3.43258668]
[1728806874958,16.6217,146.88,146.87,3.43258668]
[1728806875268,16.6217,146.88,146.87,23.43258668]
[1728806876879,16.6217,146.88,146.87,23.4338237]
[1728806881158,16.6217,146.88,146.87,23.4343123]
[1728806881775,16.6217,146.88,146.87,3.4343123]
[1728806882148,16.6217,146.88,146.87,26.8686246]
[1728806883477,16.6217,146.88,146.87,3.4343123]
[1728806883668,16.6217,146.88,146.87,26.86827713]
[1728806884978,0.1,146.89,146.88,20.0]
[1728806885184,0.1,146.89,146.88,23.43396483]
[1728806887275,0.1,146.89,146.88,23.43371643]
[1728806887480,0.1,146.89,146.88,24.79519965]
[1728806890783,0.1,146.89,146.88,21.36148322]
[1728806890969,0.1,146.89,146.88,24.79493546]
[1728806891563,0.1,146.89,146.88,23.43345224]
[1728806891967,0.1,146.89,146.88,24.79484257]
[1728806892464,0.1,146.89,146.88,23.43345224]
[1728806894774,0.1,146.89,146.88,24.79483943]
[1728806896674,0.1,146.89,146.88,23.43345224]
[1728806897287,0.1,146.89,146.88,3.43345224]
[1728806897991,0.1,146.89,146.86,23.776884]
[1728806898283,0.1,146.89,146.87,23.43312414]
[1728806898497,0.1,146.89,146.88,3.43312414]
[1728806901795,0.1,146.89,146.88,3.43352345]
[1728806903207,0.1,146.89,146.88,24.79475966]
[1728806903403,0.1,146.89,146.88,47.21040745]
[1728806904216,0.1,146.89,146.88,23.43352345]
[1728806905209,0.1,146.89,146.88,3.43352345]
[1728806905703,0.1,146.89,146.88,4.79500317]
[1728806906007,0.1,146.89,146.88,3.43352345]
[1728806909116,0.1,146.89,146.88,3.43207963]
[1728806913023,0.1,146.89,146.87,21.36142265]
[1728806913195,0.1,146.89,146.88,3.43152272]
[1728806914932,0.1,146.89,146.88,34.83350277]
[1728806916013,0.1,146.89,146.88,34.83214657]
[1728806916313,0.1,146.89,146.88,31.40198005]
[1728806916509,0.1,146.89,146.88,34.83205501]
[1728806916712,0.1,146.89,146.88,31.40198005]
[1728806916911,0.1,146.89,146.88,58.60868081]
[1728806920017,0.1,146.89,146.88,55.17886405]
[1728806920321,0.1,146.89,146.88,58.60742537]
[1728806920718,0.1,146.89,146.88,23.42856132]
[1728806920923,0.1,146.89,146.88,34.83054137]
[1728806923711,0.1,146.89,146.88,34.83105113]
[1728806927335,0.1,146.89,146.88,31.40198005]
[1728806927634,0.1,146.89,146.88,34.83169239]
[1728806930739,0.1,146.89,146.88,58.60857639]
[1728806931246,0.1,146.89,146.88,58.60943983]
[1728806934948,0.1,146.89,146.88,55.17886405]
[1728806935149,0.1,146.89,146.88,58.60988874]
[1728806937348,0.1,146.89,146.88,68.08574413]
[1728806938632,0.1,146.89,146.88,68.0852368]
[1728806939047,0.1,146.89,146.88,71.90310321]
[1728806945656,0.1,146.89,146.88,73.26415544]
[1728806945852,0.1,146.89,146.88,79.84969198]
[1728806948038,21.3772,146.95,146.89,43.776884]
[1728806948245,21.3772,146.95,146.93,11.40198005]
[1728806948427,21.3772,146.95,146.94,23.43094449]
[1728806950250,21.3772,146.95,146.94,3.43094449]
[1728806950433,21.3772,146.95,146.93,20.0]
[1728806952761,21.3772,146.95,146.94,23.42947778]
[1728806954253,21.3772,146.95,146.94,3.42947778]
[1728806954535,21.3772,146.95,146.93,31.40198005]
[1728806954738,21.3772,146.95,146.94,34.8305613]
[1728806955559,21.3772,146.95,146.94,31.40198005]
[1728806955958,21.3772,146.95,146.94,34.82962745]
[1728806957464,21.3772,146.95,146.94,23.4276474]
[1728806963469,21.3772,146.95,146.94,23.42643013]
[1728806964150,22.4048986,146.99,146.94,14.82841018]
[1728806964353,22.4048986,146.99,146.95,20.0]
[1728806964547,22.4048986,146.99,146.95,32.76278089]
[1728806965063,22.4048986,146.99,146.95,31.40198005]
[1728806969975,22.4048986,146.99,146.94,11.40198005]
[1728806970187,22.4048986,146.99,146.95,20.0]
[1728806971367,22.4048986,146.99,146.95,21.36082166]
[1728806971985,22.4048986,146.99,146.95,12.76280171]
[1728806972194,22.4048986,146.99,146.96,20.0]
[1728806972476,20.7862384,146.99,146.96,20.0]
[1728806974486,20.7862384,146.99,146.94,11.40198005]
[1728806974986,20.7862384,146.99,146.95,11.40198005]
[1728806975369,20.7862384,146.99,146.96,20.0]
[1728806988100,20.7862384,146.99,146.9,20.0]
[1728806988408,20.7862384,146.99,146.95,20.0]
[1728806989308,20.7862384,146.99,146.95,21.36081991]
[1728806991119,15.2873,146.99,146.95,21.36081991]
[1728806993612,28.3254,147.03,146.96,11.40198005]
[1728806993918,28.3254,147.03,146.97,21.36064797]
[1728806994400,21.5241,147.03,146.97,21.36064797]
[1728806996523,21.5241,147.03,146.97,12.76262802]
[1728806996822,21.5241,147.03,146.98,20.0]
[1728807000727,21.5241,147.03,146.96,11.40198005]
[1728807001031,21.5241,147.03,146.97,20.0]
[1728807002922,28.3254,147.03,146.97,20.0]
[1728807003122,28.3254,147.03,146.95,31.40198005]
[1728807003327,21.5241,147.03,146.96,20.0]
[1728807003828,28.3256,147.03,146.96,20.0]
[1728807004121,6.8018,147.02,146.96,20.0]
[1728807005324,6.8027,147.0,146.93,20.0]
[1728807005530,15.4875,146.99,146.93,11.40198005]
[1728807005741,15.4875,146.99,146.88,22.20393654]
[1728807005742,15.4875,146.99,146.94,11.40198005]
[1728807006823,15.4875,146.99,146.95,20.0]
[1728807011754,28.3329,146.99,146.93,20.0]
[1728807012640,21.5298,146.99,146.91,11.40198005]
[1728807012843,6.8038,146.98,146.9,23.776884]
[1728807013047,6.8038,146.98,146.91,11.40198005]
[1728807013857,6.8038,146.98,146.9,23.776884]
[1728807013858,6.8038,146.98,146.92,11.40198005]
[1728807014165,28.3331,146.99,146.93,20.0]
[1728807014933,28.3331,146.99,146.94,20.0]
[1728807016262,22.7002,147.05,146.99,20.0]
[1728807017854,6.8008,147.04,146.98,20.0]
[1728807018543,22.7003,147.05,146.97,11.40198005]
[1728807018747,22.7003,147.05,146.99,20.0]
[1728807019872,6.8009,147.04,146.98,20.0]
[1728807020539,6.8009,147.04,146.93,20.54109505]
[1728807020540,6.8013,147.03,146.94,20.0]
[1728807020860,6.8013,147.03,146.97,20.0]
[1728807021433,15.8997,147.05,146.97,20.0]
[1728807021846,22.7005,147.05,146.97,20.0]
[1728807022363,6.801,147.04,146.97,20.0]
[1728807023166,6.8014,147.03,146.97,20.0]
[1728807024461,6.801,147.04,146.97,31.40198005]
[1728807024643,6.801,147.04,146.97,32.76261378]
[1728807027359,6.801,147.04,146.99,20.0]
[1728807027663,6.801,147.04,146.98,20.0]
[1728807028365,6.801,147.04,146.97,12.76258492]
[1728807028667,6.801,147.04,146.98,20.0]
[1728807030873,6.801,147.04,146.97,20.0]
[1728807034665,6.801,147.04,146.98,3.4256358]
[1728807038084,6.801,147.04,146.98,3.42545658]
[1728807038277,6.801,147.04,146.98,3.42534783]
[1728807038670,6.801,147.04,146.97,20.0]
[1728807038877,6.801,147.04,146.97,21.36060292]
[1728807039179,6.801,147.04,146.98,3.42545536]
[1728807039557,6.801,147.04,146.97,20.0]
[1728807039760,6.801,147.04,146.98,3.42532674]
[1728807039954,6.801,147.04,146.97,20.0]
[1728807041058,6.801,147.04,146.94,31.40198005]
[1728807041059,6.8018,147.02,146.94,31.40198005]
[1728807041260,40.141484,147.01,146.92,15.8802]
[1728807041578,6.8032,146.99,146.93,3.42603717]
[1728807041786,6.8032,146.99,146.94,3.42603717]
[1728807041975,6.8032,146.99,146.92,3.42603717]
[1728807042155,6.8032,146.99,146.93,3.42603717]
[1728807042359,6.8032,146.99,146.92,3.42603717]
[1728807042674,6.8032,146.99,146.93,3.42603717]
[1728807043980,6.8032,146.99,146.93,23.42603717]
[1728807044284,6.8032,146.99,146.93,20.0]
[1728807044974,6.8032,146.99,146.89,20.0]
[1728807045171,6.8032,146.99,146.93,20.0]
[1728807045370,6.8032,146.99,146.93,21.36104824]
[1728807049396,7.1144542,147.04,146.96,11.40198005]
[1728807049688,21.3112,147.07,147.01,20.0]
[1728807050891,28.1107,147.07,147.01,20.0]
[1728807052092,21.3112,147.07,147.01,20.0]
[1728807053192,28.1107,147.07,147.0,20.0]
[1728807053401,6.8,147.06,147.0,20.0]
[1728807054597,6.8005,147.05,146.98,11.40198005]
[1728807054802,6.8005,147.05,146.99,20.0]
[1728807058286,6.8009,147.04,146.99,20.0]
[1728807061104,6.8009,147.04,146.97,11.40198005]
[1728807061305,6.8009,147.04,146.98,20.0]
[1728807065901,23.776884,147.06,146.98,20.0]
[1728807066092,6.8018,147.02,146.96,20.0]
[1728807066274,6.8018,147.02,146.97,3.41952407]
[1728807066924,6.8018,147.02,146.96,31.40198005]
[1728807068187,6.8014,147.03,146.96,31.40198005]
[1728807071283,6.8014,147.03,146.97,3.41989843]
[1728807072216,6.8014,147.03,146.96,31.40198005]
[1728807072700,6.8014,147.03,146.94,31.40198005]
[1728807072908,6.8014,147.03,146.95,3.42002169]
[1728807073077,6.8014,147.03,146.94,31.40198005]
[1728807073405,6.8014,147.03,146.95,3.41987978]
[1728807073600,6.8014,147.03,146.95,1.36073978]
[1728807073797,6.8014,147.03,146.95,4.78077889]
[1728807074991,6.8014,147.03,146.95,3.42003911]
[1728807075702,23.776884,147.06,146.95,3.42003911]
[1728807075890,6.8011,147.04,146.95,3.42003911]
[1728807076806,6.8011,147.04,146.96,1.36060418]
[1728807077189,6.8011,147.04,146.95,3.42003911]
[1728807081414,6.8011,147.04,146.96,3.42003911]
[1728807081719,6.8011,147.04,146.97,1.36060141]
[1728807082014,6.8011,147.04,146.96,1.36058249]
[1728807082189,6.8011,147.04,146.96,4.7806216]
[1728807082399,6.8011,147.04,146.96,1.36058249]
[1728807082597,6.8011,147.04,146.96,4.7806216]
[1728807082798,6.8011,147.04,146.96,1.36058249]
[1728807083000,6.8011,147.04,146.96,4.7806216]
[1728807083200,6.8011,147.04,146.96,1.36058249]
[1728807083412,6.8011,147.04,146.96,4.7806216]
[1728807083614,6.8011,147.04,146.96,1.36058249]
[1728807083817,6.8011,147.04,146.96,4.7806216]
[1728807084018,6.8011,147.04,146.96,1.36058249]
[1728807084220,6.8011,147.04,146.96,4.7806216]
[1728807084425,6.8011,147.04,146.96,1.36058249]
[1728807084923,6.8011,147.04,146.96,4.7806216]
[1728807085114,6.8011,147.04,146.96,1.36058249]
[1728807085313,6.8011,147.04,146.96,4.7806216]
[1728807085621,6.8011,147.04,146.96,1.36058249]
[1728807085806,6.8011,147.04,146.96,4.7806216]
[1728807086125,6.8011,147.04,146.96,1.36058249]
[1728807086302,6.8011,147.04,146.96,4.7806216]
[1728807086502,6.8011,147.04,146.96,1.36058249]
[1728807086799,6.8011,147.04,146.96,4.7806216]
[1728807087002,6.8011,147.04,146.96,1.36058249]
[1728807087202,6.8011,147.04,146.96,4.7806216]
[1728807087421,6.8011,147.04,146.96,1.36058249]
[1728807087723,6.8011,147.04,146.96,4.7806216]
[1728807087924,6.8011,147.04,146.96,1.36058249]
[1728807088126,6.8011,147.04,146.96,4.7806216]
[1728807088310,6.8011,147.04,146.96,1.36058249]
[1728807088619,6.8011,147.04,146.96,4.78148912]
[1728807088823,6.8011,147.04,146.97,20.0]
[1728807089208,6.8011,147.04,146.98,3.4207963]
[1728807090620,6.8011,147.04,146.96,4.78138907]
[1728807090804,6.8011,147.04,146.97,3.4207963]
[1728807091005,6.8011,147.04,146.96,3.4207963]
[1728807091207,6.8011,147.04,146.97,3.4207963]
[1728807091423,6.8011,147.04,146.98,3.4207963]
[1728807091625,6.8011,147.04,146.96,3.4207963]
[1728807091798,6.8011,147.04,146.97,3.4207963]
[1728807091998,6.8011,147.04,146.98,3.4207963]
[1728807092218,6.8011,147.04,146.96,3.4207963]
[1728807092398,6.8011,147.04,146.97,3.4207963]
[1728807092601,6.8011,147.04,146.98,3.42450286]
[1728807092820,6.8011,147.04,146.96,3.42450286]
[1728807093024,6.8011,147.04,146.95,20.0]
[1728807093025,6.8011,147.04,146.97,3.42450286]
[1728807093226,6.8011,147.04,146.98,3.42450286]
[1728807093424,6.8011,147.04,146.99,3.42450286]
[1728807093725,6.8011,147.04,146.96,3.42450286]
[1728807093911,6.8011,147.04,146.97,3.42450286]
[1728807094114,6.8011,147.04,146.98,3.42450286]
[1728807094303,6.8011,147.04,146.99,3.42450286]
[1728807094508,6.8011,147.04,146.96,3.42450286]
[1728807094721,6.8011,147.04,146.97,3.42450286]
[1728807094930,6.8011,147.04,146.98,3.42450286]
[1728807095109,6.8011,147.04,146.99,3.42450286]
[1728807095309,6.8011,147.04,147.0,3.42450286]
[1728807095517,6.8011,147.04,146.95,20.0]
[1728807095822,6.8011,147.04,146.96,3.42982756]
[1728807096017,6.8011,147.04,146.97,3.42982756]
[1728807096327,6.8011,147.04,146.98,3.42982756]
[1728807096531,6.8011,147.04,146.99,3.42982756]
[1728807096724,6.8011,147.04,147.0,3.42982756]
[1728807096911,6.8011,147.04,146.96,20.0]
[1728807097111,6.8011,147.04,146.97,3.42997094]
[1728807097426,6.8011,147.04,146.96,20.0]
[1728807097427,6.8011,147.04,146.98,3.42997094]
[1728807097603,6.8011,147.04,146.99,3.42997094]
[1728807097802,6.8011,147.04,147.0,3.42997094]
[1728807098003,6.8011,147.04,146.96,20.0]
[1728807098320,6.8014,147.03,146.97,3.42999621]
[1728807098518,6.8014,147.03,146.98,3.42999621]
[1728807098817,6.8014,147.03,146.99,3.42999621]
[1728807099129,6.8014,147.03,147.0,3.42999621]
[1728807099317,6.8014,147.03,146.96,20.0]
[1728807099518,6.8014,147.03,146.97,3.43099301]
[1728807099828,6.8014,147.03,146.96,20.0]
[1728807100635,6.8014,147.03,146.97,3.43100179]
[1728807102117,23.776884,147.06,146.98,23.43103208]
[1728807102118,6.8018,147.02,146.98,23.43103208]
[1728807102302,6.8018,147.02,146.99,3.43103208]
[1728807102506,6.8018,147.02,146.97,3.43100179]
[1728807102824,6.8019,147.02,146.98,23.43224703]
[1728807103020,6.8019,147.02,146.99,3.43224703]
[1728807103325,6.8019,147.02,146.97,3.43100179]
[1728807103527,6.8019,147.02,146.98,23.43249205]
[1728807103719,6.8019,147.02,146.99,3.43249205]
[1728807103925,6.8019,147.02,146.98,20.0]
[1728807104225,6.8019,147.02,146.99,3.43253319]
[1728807104523,6.8022,147.01,146.97,3.43100179]
[1728807104828,6.8022,147.01,146.98,3.43254337]
[1728807105018,6.8022,147.01,146.99,3.43254337]
[1728807105212,23.776884,147.06,146.97,3.43100179]
[1728807105413,6.8019,147.02,146.98,3.43253385]
[1728807105634,6.8019,147.02,146.99,3.43253385]
[1728807105831,6.8019,147.02,146.97,3.43100179]
[1728807106035,6.8019,147.02,146.98,3.43280503]
[1728807106328,6.8019,147.02,146.97,3.43100179]
[1728807106329,6.8019,147.02,146.99,3.43280503]
[1728807106537,6.8019,147.02,146.97,3.43100179]
[1728807106911,6.8019,147.02,146.98,3.43278205]
[1728807107234,6.8019,147.02,146.98,6.8655641]
[1728807107615,6.8019,147.02,146.99,3.43278205]
[1728807107815,6.8019,147.02,146.98,3.43278205]
[1728807108039,6.8019,147.02,146.99,3.43276898]
[1728807108341,6.8019,147.02,146.98,3.43278205]
[1728807108638,6.8019,147.02,146.99,3.43278371]
[1728807108938,6.8019,147.02,146.98,3.43278205]
[1728807109138,6.8019,147.02,146.99,3.43282881]
[1728807109347,6.8019,147.02,146.98,3.43278205]
[1728807109556,6.8019,147.02,146.99,3.43285882]
[1728807109756,6.8019,147.02,146.98,3.43278205]
[1728807109926,6.8019,147.02,146.99,3.43273526]
[1728807110126,6.8019,147.02,146.98,3.43278205]
[1728807110347,6.8019,147.02,146.99,3.43278685]
[1728807110544,6.8019,147.02,146.98,3.43278205]
[1728807110733,6.8019,147.02,146.99,3.43278912]
[1728807111054,6.8019,147.02,146.98,3.43278205]
[1728807111552,6.8019,147.02,146.99,3.43281727]
[1728807111854,6.8019,147.02,146.98,3.43278205]
[1728807112032,6.8019,147.02,146.99,3.43281411]
[1728807112234,6.8019,147.02,146.96,21.36069645]
[1728807112448,6.8014,147.03,146.97,3.43280674]
[1728807112651,6.8014,147.03,146.98,3.43280674]
[1728807112862,6.8014,147.03,146.99,3.43280674]
[1728807113034,6.8014,147.03,146.96,21.36069645]
[1728807113355,6.8014,147.03,146.97,3.4328449]
[1728807113652,6.8014,147.03,146.96,21.36069645]
[1728807113653,6.8014,147.03,146.98,3.4328449]
[1728807113855,6.8014,147.03,146.99,3.4328449]
[1728807114032,6.8014,147.03,146.96,21.36069645]
[1728807114332,6.8014,147.03,146.97,3.43280664]
[1728807114522,6.8014,147.03,146.98,3.43280664]
[1728807114725,6.8014,147.03,146.99,3.43280664]
[1728807114926,6.8014,147.03,146.96,21.36069645]
[1728807115257,6.8014,147.03,146.97,3.43280664]
[1728807115555,6.8014,147.03,146.98,3.43280664]
[1728807115748,6.8014,147.03,146.99,3.43280664]
[1728807115928,6.8014,147.03,146.96,21.36069645]
[1728807116129,6.8014,147.03,146.97,3.43280161]
[1728807116426,6.8014,147.03,146.98,4.79347791]
[1728807116645,6.8014,147.03,146.99,3.43280161]
[1728807116845,6.8014,147.03,146.96,20.0]
[1728807117054,6.8014,147.03,146.97,3.43270347]
[1728807117253,6.8014,147.03,146.98,3.43270347]
[1728807117455,6.8014,147.03,146.99,3.43270347]
[1728807117636,6.8014,147.03,146.96,20.0]
[1728807117827,6.801,147.04,146.97,3.43281209]
[1728807118060,6.801,147.04,146.98,3.43281209]
[1728807118247,6.801,147.04,146.99,3.43281209]
[1728807118556,6.801,147.04,146.98,20.0]
[1728807118759,6.801,147.04,146.99,3.43276022]
[1728807118955,6.801,147.04,146.98,20.0]
[1728807119262,6.801,147.04,146.99,3.43275803]
[1728807119465,6.801,147.04,146.98,20.0]
[1728807119674,6.801,147.04,146.99,3.43274357]
[1728807119833,6.801,147.04,146.98,20.0]
[1728807120032,6.801,147.04,146.99,3.43274357]
[1728807120256,6.801,147.04,146.98,20.0]
[1728807120533,6.801,147.04,146.99,3.43276035]
[1728807120763,6.801,147.04,146.98,20.0]
[1728807121045,6.801,147.04,146.99,3.43276484]
[1728807121237,6.801,147.04,146.98,20.0]
[1728807121450,6.801,147.04,146.99,3.43274591]
[1728807121843,6.801,147.04,147.0,3.43254632]
[1728807122046,6.801,147.04,146.98,20.0]